[Event "SVK Amateur-ch 2020"]
[Site "Topolcany"]
[Date "2020.07.11"]
[Round "3.5"]
[White "Oprea, Erik"]
[Black "Brnusak, Tomas"]
[Result "1/2-1/2"]
[ECO "A85"]
[WhiteElo "2113"]
[BlackElo "2028"]
[Annotator "ChessBase"]
[PlyCount "126"]
[EventDate "2020.07.10"]
[EventType "swiss"]
[EventCountry "SVK"]
[SourceTitle "playchess.com"]
[Source "ChessBase"]
[SourceQuality "1"]
[TimeControl "3600+30"]

1. d4 {[%emt 0:00:00]} f5 {[%emt 0:00:00]} 2. c4 {[%emt 0:00:08]} Nf6 {[%emt 0:00:30]} 3. Nc3 {[%emt 0:00:07]} e6 {[%emt 0:00:36]} 4. a3 {[%emt 0:00:11]} d5 {[%emt 0:01:02]} 5. Bf4 {[%emt 0:00:28]} Bd6 {[%emt 0:01:01]} 6. Bxd6 {[%emt 0:00:53]} Qxd6 {[%emt 0:00:16]} 7. c5 {[%emt 0:00:40]} Qe7 {[%emt 0:00:38]} 8. Nf3 {[%emt 0:05:13]} c6 {[%emt 0:01:10]} 9. Ne5 {[%emt 0:01:33]} Nbd7 {[%emt 0:00:48]} 10. f4 {[%emt 0:01:11]} Nxe5 {[%emt 0:02:04]} 11. fxe5 {[%emt 0:00:14]} Ng4 {[%emt 0:01:45]} 12. Qd2 {[%emt 0:03:34]} O-O {[%emt 0:00:42]} 13. e3 {[%emt 0:01:04]} Qg5 {[%emt 0:00:34]} 14. g3 {[%emt 0:08:51]} Qxe3+ {[%emt 0:02:47]} 15. Qxe3 {[%emt 0:00:12]} Nxe3 {[%emt 0:00:07]} 16. Bd3 {[%emt 0:06:34]} f4 {[%emt 0:05:34]} 17. Kd2 {[%emt 0:12:57]} Ng4 {[%emt 0:08:08]} 18. Raf1 {[%emt 0:01:00]} f3 {[%emt 0:06:02]} 19. h3 {[%emt 0:01:03]} Nh6 {[%emt 0:00:15]} 20. g4 {[%emt 0:05:14]} Bd7 {[%emt 0:01:05]} 21. Ke3 {[%emt 0:00:10]} g5 {[%emt 0:03:31]} 22. Rxf3 {[%emt 0:00:12]} Rxf3+ {[%emt 0:00:05]} 23. Kxf3 {[%emt 0:00:03]} Rf8+ {[%emt 0:00:09]} 24. Ke3 {[%emt 0:00:08]} Kg7 {[%emt 0:00:09]} 25. Ne2 {[%emt 0:00:48]} Ng8 {[%emt 0:01:53]} 26. Ng3 {[%emt 0:00:38]} Be8 {[%emt 0:00:10]} 27. Rf1 {[%emt 0:00:13]} Rxf1 {[%emt 0:00:10]} 28. Bxf1 {[%emt 0:00:31]} Ne7 {[%emt 0:01:04]} 29. b4 {[%emt 0:00:39]} a6 {[%emt 0:00:37]} 30. Bd3 {[%emt 0:00:32]} Bg6 {[%emt 0:01:55]} 31. Bf1 {[%emt 0:00:38]} Kf7 {[%emt 0:01:00]} 32. Kd2 {[%emt 0:01:01]} Ke8 {[%emt 0:02:06]} 33. a4 {[%emt 0:00:43]} Kd8 {[%emt 0:00:51]} 34. Ne2 {[%emt 0:00:51]} Be8 {[%emt 0:00:48]} 35. Nc3 {[%emt 0:03:00]} Ng6 {[%emt 0:00:34]} 36. Bd3 {[%emt 0:00:54]} h6 {[%emt 0:00:31]} 37. Bxg6 {[%emt 0:00:18]} Bxg6 {[%emt 0:00:05]} 38. Ke3 {[%emt 0:02:58]} Kd7 {[%emt 0:04:42]} 39. a5 {[%emt 0:00:47]} Bc2 {[%emt 0:00:42]} 40. Kf3 {[%emt 0:00:43]} Be4+ {[%emt 0:00:16]} 41. Kg3 {[%emt 0:02:52]} Bd3 {[%emt 0:00:12]} 42. Nd1 {[%emt 0:00:29]} Ke7 {[%emt 0:00:36]} 43. h4 {[%emt 0:00:17]} Kf7 {[%emt 0:00:32]} 44. Nc3 {[%emt 0:00:39]} Bb5 {[%emt 0:00:28]} 45. Nd1 {[%emt 0:01:42]} Kg6 {[%emt 0:00:22]} 46. Nf2 {[%emt 0:00:58]} Be2 {[%emt 0:01:28]} 47. Nh1 {[%emt 0:01:14]} Kg7 {[%emt 0:01:04]} 48. Kh3 {[%emt 0:01:46]} Bf1+ {[%emt 0:00:06]} 49. Kg3 {[%emt 0:00:08]} Be2 {[%emt 0:00:04]} 50. Nf2 {[%emt 0:00:38]} Kg6 {[%emt 0:00:09]} 51. Nh3 {[%emt 0:00:34]} Bd1 {[%emt 0:00:46]} 52. Ng1 {[%emt 0:01:22]} Kg7 {[%emt 0:00:11]} 53. h5 {[%emt 0:02:49]} Kf7 {[%emt 0:00:14]} 54. Nh3 {[%emt 0:00:06]} Kg7 {[%emt 0:00:10]} 55. Nf2 {[%emt 0:00:06]} Be2 {[%emt 0:00:05]} 56. Kg2 {[%emt 0:00:13]} Kf7 {[%emt 0:00:09]} 57. Kg1 {[%emt 0:00:28]} Kg7 {[%emt 0:00:09]} 58. Kg2 {[%emt 0:00:25]} Kf7 {[%emt 0:00:05]} 59. Kg3 {[%emt 0:00:07]} Kg7 {[%emt 0:00:07]} 60. Nh3 {[%emt 0:00:52]} Kf7 {[%emt 0:00:17]} 61. Ng1 {[%emt 0:00:34]} Bd1 {[%emt 0:00:09]} 62. Nf3 {[%emt 0:01:00]} Bxf3 {[%emt 0:00:07]} 63. Kxf3 {[%emt 0:00:03]} Ke7 {[%emt 0:00:12]} 1/2-1/2

[Event "SVK Amateur-ch 2020"]
[Site "Topolcany"]
[Date "2020.07.11"]
[Round "3.5"]
[White "Kapec, Kristian"]
[Black "Balazs, Ladislav"]
[Result "0-1"]
[ECO "B22"]
[WhiteElo "1786"]
[BlackElo "2122"]
[Annotator "ChessBase"]
[PlyCount "72"]
[EventDate "2020.07.10"]
[EventType "swiss"]
[EventCountry "SVK"]
[SourceTitle "playchess.com"]
[Source "ChessBase"]
[SourceQuality "1"]
[TimeControl "3600+30"]

1. e4 {[%emt 0:00:00]} c5 {[%emt 0:00:00]} 2. d4 {[%emt 0:00:00]} cxd4 {[%emt 0:00:03]} 3. c3 {[%emt 0:00:00]} Nf6 {[%emt 0:00:05]} 4. e5 {[%emt 0:00:00]} Nd5 {[%emt 0:00:04]} 5. cxd4 {[%emt 0:00:00]} e6 {[%emt 0:00:04]} 6. Nf3 {[%emt 0:00:35]} d6 {[%emt 0:00:35]} 7. Bc4 {[%emt 0:03:33]} Nb6 {[%emt 0:02:27]} 8. Bb3 {[%emt 0:00:23]} Nc6 {[%emt 0:00:12]} 9. Bf4 {[%emt 0:02:53]} d5 {[%emt 0:00:13]} 10. Nc3 {[%emt 0:00:47]} Be7 {[%emt 0:00:42]} 11. Bc2 {[%emt 0:01:16]} Nc4 {[%emt 0:01:10]} 12. Rb1 {[%emt 0:03:42]} Qa5 {[%emt 0:01:14]} 13. Bd2 {[%emt 0:05:30]} Nxd2 {[%emt 0:02:08]} 14. Qxd2 {[%emt 0:00:05]} Bd7 {[%emt 0:01:07]} 15. a3 {[%emt 0:02:34]} Rc8 {[%emt 0:02:02]} 16. Ne2 {[%emt 0:01:50]} Nb4 {[%emt 0:06:33]} 17. axb4 {[%emt 0:10:14]} Bxb4 {[%emt 0:00:10]} 18. Nc3 {[%emt 0:00:06]} Rxc3 {[%emt 0:00:08]} 19. bxc3 {[%emt 0:00:10]} Bxc3 {[%emt 0:00:09]} 20. Rxb7 {[%emt 0:02:21]} Ke7 {[%emt 0:03:51]} 21. Bd3 {[%emt 0:13:11]} Bxd2+ {[%emt 0:00:09]} 22. Nxd2 {[%emt 0:00:21]} Qa1+ {[%emt 0:00:13]} 23. Bb1 {[%emt 0:05:11]} Qxd4 {[%emt 0:00:23]} 24. Nf3 {[%emt 0:00:27]} Qc3+ {[%emt 0:00:05]} 25. Ke2 {[%emt 0:00:16]} a5 {[%emt 0:00:43]} 26. Bd3 {[%emt 0:00:21]} Rc8 {[%emt 0:01:31]} 27. Rhb1 {[%emt 0:00:38]} Rc7 {[%emt 0:02:15]} 28. R7b3 {[%emt 0:00:40]} Qc5 {[%emt 0:00:10]} 29. Ra1 {[%emt 0:01:00]} a4 {[%emt 0:00:24]} 30. Rb2 {[%emt 0:00:48]} Qc3 {[%emt 0:00:11]} 31. Raa2 {[%emt 0:01:11]} Qa5 {[%emt 0:00:23]} 32. Nd4 {[%emt 0:00:38]} f6 {[%emt 0:00:44]} 33. f4 {[%emt 0:01:05]} fxe5 {[%emt 0:00:04]} 34. fxe5 {[%emt 0:00:03]} Rc1 {[%emt 0:00:42]} 35. Rb1 {[%emt 0:01:29]} Qe1+ {[%emt 0:00:14]} 36. Kf3 {[%emt 0:00:23]} Rxb1 {[%emt 0:00:14]} 0-1

[Event "SVK Amateur-ch 2020"]
[Site "Topolcany"]
[Date "2020.07.11"]
[Round "3.6"]
[White "Meers, Hubert"]
[Black "Balint, Vilmos"]
[Result "1/2-1/2"]
[ECO "B28"]
[WhiteElo "2037"]
[BlackElo "2143"]
[Annotator "ChessBase"]
[PlyCount "89"]
[EventDate "2020.07.10"]
[EventType "swiss"]
[EventCountry "SVK"]
[SourceTitle "playchess.com"]
[Source "ChessBase"]
[SourceQuality "1"]
[TimeControl "3600+30"]

1. e4 {[%emt 0:00:00]} c5 {[%emt 0:00:00]} 2. Nf3 {[%emt 0:00:00]} a6 {[%emt 0:00:00]} 3. c4 {[%emt 0:00:00]} Nc6 {[%emt 0:00:00]} 4. d4 {[%emt 0:00:00]} cxd4 {[%emt 0:00:02]} 5. Nxd4 {[%emt 0:00:00]} e5 {[%emt 0:00:05]} 6. Nc2 {[%emt 0:00:56]} Bc5 {[%emt 0:00:05]} 7. Be3 {[%emt 0:04:23]} d6 {[%emt 0:03:18]} 8. Nc3 {[%emt 0:04:52]} Nf6 {[%emt 0:01:14]} 9. Be2 {[%emt 0:03:03]} Be6 {[%emt 0:01:00]} 10. Qd2 {[%emt 0:03:38]} O-O {[%emt 0:03:42]} 11. O-O {[%emt 0:01:26]} Rc8 {[%emt 0:02:42]} 12. f3 {[%emt 0:06:20]} Qb6 {[%emt 0:03:40]} 13. Rfd1 {[%emt 0:10:33]} Rfd8 {[%emt 0:04:45]} 14. Kf2 {[%emt 0:01:48]} Ne8 {[%emt 0:07:32]} 15. Na4 {[%emt 0:03:36]} Qa7 {[%emt 0:03:45]} 16. b4 {[%emt 0:07:06]} Bxe3+ {[%emt 0:03:26]} 17. Qxe3 {[%emt 0:00:05]} f5 {[%emt 0:03:25]} 18. exf5 {[%emt 0:09:06]} Bxf5 {[%emt 0:00:10]} 19. Qxa7 {[%emt 0:00:51]} Nxa7 {[%emt 0:00:02]} 20. Ne3 {[%emt 0:00:07]} Be6 {[%emt 0:00:46]} 21. Bd3 {[%emt 0:04:28]} Nf6 {[%emt 0:04:27]} 22. Rac1 {[%emt 0:06:37]} g6 {[%emt 0:03:50]} 23. Be4 {[%emt 0:00:49]} Rc7 {[%emt 0:03:50]} 24. Nb6 {[%emt 0:01:00]} Nc6 {[%emt 0:00:23]} 25. c5 {[%emt 0:01:03]} Nxe4+ {[%emt 0:00:26]} 26. fxe4 {[%emt 0:00:05]} Rf8+ {[%emt 0:00:08]} 27. Kg1 {[%emt 0:00:31]} dxc5 {[%emt 0:00:09]} 28. Rxc5 {[%emt 0:00:18]} Rcf7 {[%emt 0:03:13]} 29. a3 {[%emt 0:00:57]} Rf2 {[%emt 0:00:45]} 30. Nbc4 {[%emt 0:00:41]} Re2 {[%emt 0:00:56]} 31. b5 {[%emt 0:00:37]} axb5 {[%emt 0:00:18]} 32. Rxb5 {[%emt 0:00:04]} Rf7 {[%emt 0:06:12]} 33. Rdb1 {[%emt 0:00:38]} Nd8 {[%emt 0:07:16]} 34. Rxe5 {[%emt 0:00:42]} Rc7 {[%emt 0:00:07]} 35. Rd1 {[%emt 0:00:24]} Rc8 {[%emt 0:00:49]} 36. Rxd8+ {[%emt 0:00:31]} Rxd8 {[%emt 0:00:01]} 37. Rxe6 {[%emt 0:00:06]} b5 {[%emt 0:00:01]} 38. Kf1 {[%emt 0:00:19]} Ra2 {[%emt 0:00:06]} 39. Nd6 {[%emt 0:00:34]} Rf8+ {[%emt 0:00:04]} 40. Ke1 {[%emt 0:00:30]} Rff2 {[%emt 0:00:10]} 41. Re8+ {[%emt 0:00:44]} Kg7 {[%emt 0:00:03]} 42. Re7+ {[%emt 0:00:37]} Kg8 {[%emt 0:00:13]} 43. Re8+ {[%emt 0:00:28]} Kg7 {[%emt 0:00:02]} 44. Re7+ {[%emt 0:00:34]} Kg8 {[%emt 0:00:04]} 45. Re8+ {[%emt 0:00:10]} 1/2-1/2

[Event "SVK Amateur-ch 2020"]
[Site "Topolcany"]
[Date "2020.07.11"]
[Round "3.6"]
[White "Szocs, Ladislav"]
[Black "Lach, Piotr"]
[Result "0-1"]
[ECO "E07"]
[WhiteElo "1801"]
[BlackElo "2086"]
[Annotator "ChessBase"]
[PlyCount "89"]
[EventDate "2020.07.10"]
[EventType "swiss"]
[EventCountry "SVK"]
[SourceTitle "playchess.com"]
[Source "ChessBase"]
[SourceQuality "1"]
[TimeControl "3600+30"]

1. Nf3 {[%emt 0:00:04]} Nf6 {[%emt 0:00:00]} 2. g3 {[%emt 0:00:18]} e6 {[%emt 0:01:06]} 3. Bg2 {[%emt 0:00:20]} d5 {[%emt 0:01:32]} 4. O-O {[%emt 0:00:49]} Be7 {[%emt 0:00:42]} 5. d4 {[%emt 0:00:57]} O-O {[%emt 0:00:17]} 6. c4 {[%emt 0:00:50]} c6 {[%emt 0:01:41]} 7. Nc3 {[%emt 0:01:03]} Nbd7 {[%emt 0:00:40]} 8. cxd5 {[%emt 0:03:14]} exd5 {[%emt 0:00:24]} 9. b3 {[%emt 0:03:58]} Re8 {[%emt 0:04:18]} 10. Bb2 {[%emt 0:01:53]} Bd6 {[%emt 0:02:51]} 11. Re1 {[%emt 0:02:55]} Nf8 {[%emt 0:12:43]} 12. Nd2 {[%emt 0:04:18]} Bf5 {[%emt 0:08:48]} 13. e4 {[%emt 0:08:41]} dxe4 {[%emt 0:00:24]} 14. Ndxe4 {[%emt 0:00:20]} Bb4 {[%emt 0:05:13]} 15. Nxf6+ {[%emt 0:18:06]} Qxf6 {[%emt 0:00:05]} 16. Qf3 {[%emt 0:03:14]} Qg6 {[%emt 0:03:55]} 17. Re5 {[%emt 0:02:31]} Rxe5 {[%emt 0:01:38]} 18. dxe5 {[%emt 0:00:05]} Ne6 {[%emt 0:01:05]} 19. Ne4 {[%emt 0:11:07]} Bxe4 {[%emt 0:02:13]} 20. Qxe4 {[%emt 0:00:06]} Qxe4 {[%emt 0:00:04]} 21. Bxe4 {[%emt 0:00:29]} Rd8 {[%emt 0:00:06]} 22. a3 {[%emt 0:04:11]} Bc5 {[%emt 0:00:11]} 23. b4 {[%emt 0:00:33]} Bxf2+ {[%emt 0:02:27]} 24. Kxf2 {[%emt 0:00:52]} Rd2+ {[%emt 0:00:03]} 25. Ke3 {[%emt 0:00:42]} Rxb2 {[%emt 0:00:04]} 26. Rd1 {[%emt 0:00:24]} Rb3+ {[%emt 0:00:41]} 27. Ke2 {[%emt 0:00:13]} Nf8 {[%emt 0:10:45]} 28. Rd8 {[%emt 0:00:24]} Rxa3 {[%emt 0:01:10]} 29. Rb8 {[%emt 0:00:26]} a5 {[%emt 0:00:30]} 30. Rxb7 {[%emt 0:00:40]} axb4 {[%emt 0:00:09]} 31. Rxb4 {[%emt 0:00:34]} Ra5 {[%emt 0:00:32]} 32. Bxc6 {[%emt 0:00:35]} Rxe5+ {[%emt 0:00:02]} 33. Kf3 {[%emt 0:00:42]} Re7 {[%emt 0:01:22]} 34. Rb8 {[%emt 0:00:19]} g6 {[%emt 0:00:12]} 35. Rd8 {[%emt 0:00:44]} Kg7 {[%emt 0:00:11]} 36. Bd5 {[%emt 0:00:19]} Ra7 {[%emt 0:00:20]} 37. h4 {[%emt 0:00:31]} h5 {[%emt 0:00:18]} 38. Ra8 {[%emt 0:00:18]} Rd7 {[%emt 0:00:19]} 39. Bc4 {[%emt 0:00:31]} Rc7 {[%emt 0:00:12]} 40. Bd5 {[%emt 0:00:52]} Nd7 {[%emt 0:00:17]} 41. Ra3 {[%emt 0:00:42]} Nf6 {[%emt 0:00:23]} 42. Be4 {[%emt 0:00:32]} Rc1 {[%emt 0:00:34]} 43. Bd3 {[%emt 0:00:36]} Ng4 {[%emt 0:00:25]} 44. Be2 {[%emt 0:00:26]} Rc2 {[%emt 0:00:45]} 45. Rb3 {[%emt 0:01:06]} 0-1

[Event "SVK Amateur-ch 2020"]
[Site "Topolcany"]
[Date "2020.07.11"]
[Round "3.7"]
[White "Gromovs, Sergejs"]
[Black "Dziewonski, Dariusz"]
[Result "1-0"]
[ECO "D37"]
[WhiteElo "2131"]
[BlackElo "2029"]
[Annotator "ChessBase"]
[PlyCount "57"]
[EventDate "2020.07.10"]
[EventType "swiss"]
[EventCountry "SVK"]
[SourceTitle "playchess.com"]
[Source "ChessBase"]
[SourceQuality "1"]
[TimeControl "3600+30"]

1. d4 {[%emt 0:00:00]} d5 {[%emt 0:00:00]} 2. Nf3 {[%emt 0:00:00]} Nf6 {[%emt 0:00:00]} 3. c4 {[%emt 0:00:00]} e6 {[%emt 0:00:00]} 4. Nc3 {[%emt 0:00:00]} Be7 {[%emt 0:00:00]} 5. Bf4 {[%emt 0:00:00]} O-O {[%emt 0:00:15]} 6. e3 {[%emt 0:00:00]} c5 {[%emt 0:01:44]} 7. dxc5 {[%emt 0:00:04]} Bxc5 {[%emt 0:00:59]} 8. Qc2 {[%emt 0:00:05]} Qe7 {[%emt 0:07:38]} 9. a3 {[%emt 0:00:14]} a5 {[%emt 0:02:40]} 10. Be2 {[%emt 0:01:01]} b6 {[%emt 0:03:07]} 11. O-O {[%emt 0:00:39]} Bb7 {[%emt 0:00:40]} 12. Nb5 {[%emt 0:01:10]} Nbd7 {[%emt 0:02:02]} 13. Rfd1 {[%emt 0:02:18]} Rac8 {[%emt 0:02:08]} 14. b4 {[%emt 0:03:04]} axb4 {[%emt 0:04:26]} 15. axb4 {[%emt 0:00:18]} Bxb4 {[%emt 0:00:44]} 16. Ra7 {[%emt 0:00:03]} Bc6 {[%emt 0:02:22]} 17. Nfd4 {[%emt 0:01:40]} Bxb5 {[%emt 0:08:07]} 18. Nxb5 {[%emt 0:00:05]} e5 {[%emt 0:02:20]} 19. Bg5 {[%emt 0:01:17]} Qc5 {[%emt 0:01:51]} 20. Qa4 {[%emt 0:01:32]} dxc4 {[%emt 0:05:25]} 21. Nd6 {[%emt 0:01:23]} b5 {[%emt 0:06:34]} 22. Nxb5 {[%emt 0:05:18]} Nb6 {[%emt 0:02:06]} 23. Qa6 {[%emt 0:00:05]} c3 {[%emt 0:01:48]} 24. e4 {[%emt 0:02:09]} Nc4 {[%emt 0:06:27]} 25. Bxf6 {[%emt 0:05:19]} gxf6 {[%emt 0:02:16]} 26. Qxf6 {[%emt 0:01:04]} Rc6 {[%emt 0:01:39]} 27. Qf5 {[%emt 0:04:58]} Qxb5 {[%emt 0:01:04]} 28. Rd8 {[%emt 0:00:34]} Qc5 {[%emt 0:03:26]} 29. Qxf7+ {[%emt 0:00:09]} 1-0

[Event "SVK Amateur-ch 2020"]
[Site "Topolcany"]
[Date "2020.07.11"]
[Round "3.7"]
[White "Lecky, Juraj"]
[Black "Mesaros, Jan"]
[Result "1-0"]
[ECO "A30"]
[WhiteElo "2083"]
[BlackElo "1782"]
[Annotator "RC"]
[PlyCount "39"]
[EventDate "2020.07.10"]
[EventType "swiss"]
[EventCountry "SVK"]
[SourceTitle "playchess.com"]
[Source "ChessBase"]
[SourceQuality "1"]
[TimeControl "3600+30"]

1. Nf3 {[%emt 0:00:00]} Nf6 {[%emt 0:00:00]} 2. c4 {[%emt 0:00:00]} c5 {[%emt 0:00:13]} 3. b3 {[%emt 0:00:00]} b6 {[%emt 0:00:18]} 4. g3 {[%emt 0:00:00]} Bb7 {[%emt 0:00:09]} 5. Bg2 {[%emt 0:00:00]} e6 {[%emt 0:00:29]} 6. O-O {[%emt 0:00:17]} Be7 {[%emt 0:00:29]} 7. Nc3 {[%emt 0:00:55]} d6 {[%emt 0:00:44]} 8. e3 {[%emt 0:01:12]} Nbd7 {[%emt 0:00:59]} 9. d4 {[%emt 0:00:59]} cxd4 {[%emt 0:00:10]} 10. Nxd4 {[%emt 0:02:43]} Bxg2 {[%emt 0:00:44]} 11. Kxg2 {[%emt 0:00:02]} Qc8 {[%emt 0:01:47]} 12. e4 {[%emt 0:09:33]} a6 {[%emt 0:00:23]} 13. Bb2 {[%emt 0:02:09]} Qb7 {[%emt 0:02:24]} 14. Qe2 {[%emt 0:03:29]} h5 {[%emt 0:01:10]} 15. h3 {[%emt 0:01:19]} Nc5 {[%emt 0:01:16]} 16. Rae1 {[%emt 0:03:56]} Qc7 {[%emt 0:00:21]} 17. f4 {[%emt 0:02:48]} g6 {[%emt 0:01:01]} 18. e5 {[%emt 0:11:13]} Qb7+ {[%emt 0:01:35]} 19. Kg1 {[%emt 0:01:01]} Nfd7 {[%emt 0:00:50]} 20. b4 {[%emt 0:00:32]} 1-0

[Event "SVK Amateur-ch 2020"]
[Site "Topolcany"]
[Date "2020.07.11"]
[Round "3.8"]
[White "Kalisky, Vladimir"]
[Black "Janco, Darius"]
[Result "1-0"]
[ECO "A39"]
[WhiteElo "2136"]
[BlackElo "2003"]
[Annotator "ChessBase"]
[PlyCount "49"]
[EventDate "2020.07.10"]
[EventType "swiss"]
[EventCountry "SVK"]
[SourceTitle "playchess.com"]
[Source "ChessBase"]
[SourceQuality "1"]
[TimeControl "3600+30"]

1. Nf3 {[%emt 0:00:00]} Nf6 {[%emt 0:09:01]} 2. g3 {[%emt 0:00:07]} g6 {[%emt 0:00:20]} 3. Bg2 {[%emt 0:00:15]} Bg7 {[%emt 0:00:12]} 4. O-O {[%emt 0:00:12]} O-O {[%emt 0:00:11]} 5. c4 {[%emt 0:00:27]} c5 {[%emt 0:00:42]} 6. Nc3 {[%emt 0:00:27]} Nc6 {[%emt 0:04:58]} 7. d4 {[%emt 0:00:16]} cxd4 {[%emt 0:02:44]} 8. Nxd4 {[%emt 0:01:15]} Nxd4 {[%emt 0:00:28]} 9. Qxd4 {[%emt 0:00:03]} d6 {[%emt 0:00:20]} 10. Qd3 {[%emt 0:06:53]} Qa5 {[%emt 0:01:40]} 11. Bd2 {[%emt 0:06:04]} Qh5 {[%emt 0:00:52]} 12. f3 {[%emt 0:00:19]} Nd7 {[%emt 0:00:36]} 13. Nd5 {[%emt 0:10:51]} e6 {[%emt 0:02:17]} 14. Ne7+ {[%emt 0:09:38]} Kh8 {[%emt 0:00:08]} 15. Qxd6 {[%emt 0:00:52]} Nb6 {[%emt 0:08:52]} 16. Bc3 {[%emt 0:01:06]} e5 {[%emt 0:00:44]} 17. b3 {[%emt 0:06:47]} Be6 {[%emt 0:00:31]} 18. Rad1 {[%emt 0:00:26]} Qg5 {[%emt 0:05:56]} 19. f4 {[%emt 0:02:04]} exf4 {[%emt 0:01:03]} 20. gxf4 {[%emt 0:00:17]} Qg4 {[%emt 0:03:44]} 21. h3 {[%emt 0:04:49]} Qh4 {[%emt 0:03:03]} 22. Bxg7+ {[%emt 0:01:15]} Kxg7 {[%emt 0:00:02]} 23. Qe5+ {[%emt 0:01:33]} Kh6 {[%emt 0:02:10]} 24. f5 {[%emt 0:03:55]} Qxe7 {[%emt 0:01:34]} 25. f6 {[%emt 0:01:01]} 1-0

[Event "SVK Amateur-ch 2020"]
[Site "Topolcany"]
[Date "2020.07.11"]
[Round "3.8"]
[White "Matejov, Jaroslav"]
[Black "Panda Gyorgy"]
[Result "1-0"]
[ECO "B23"]
[WhiteElo "2021"]
[BlackElo "1773"]
[Annotator "ChessBase"]
[PlyCount "71"]
[EventDate "2020.07.10"]
[EventType "swiss"]
[EventCountry "SVK"]
[SourceTitle "playchess.com"]
[Source "ChessBase"]
[SourceQuality "1"]
[TimeControl "3600+30"]

1. e4 {[%emt 0:02:13]} c5 {[%emt 0:00:00]} 2. Nc3 {[%emt 0:00:10]} a6 {[%emt 0:00:27]} 3. a4 {[%emt 0:00:23]} e6 {[%emt 0:01:46]} 4. g3 {[%emt 0:00:25]} g6 {[%emt 0:00:45]} 5. Bg2 {[%emt 0:00:08]} Bg7 {[%emt 0:00:07]} 6. Nge2 {[%emt 0:00:05]} Ne7 {[%emt 0:00:12]} 7. O-O {[%emt 0:00:21]} O-O {[%emt 0:00:06]} 8. d3 {[%emt 0:01:07]} d6 {[%emt 0:02:45]} 9. Be3 {[%emt 0:04:46]} Nbc6 {[%emt 0:00:33]} 10. Qd2 {[%emt 0:00:23]} Re8 {[%emt 0:00:21]} 11. h3 {[%emt 0:05:45]} b6 {[%emt 0:02:02]} 12. Bh6 {[%emt 0:01:28]} Bh8 {[%emt 0:00:27]} 13. f4 {[%emt 0:02:17]} Ra7 {[%emt 0:03:20]} 14. Kh2 {[%emt 0:02:21]} Nd4 {[%emt 0:01:25]} 15. Nxd4 {[%emt 0:00:55]} Bxd4 {[%emt 0:00:43]} 16. Nd1 {[%emt 0:00:51]} Bh8 {[%emt 0:04:13]} 17. c3 {[%emt 0:01:56]} d5 {[%emt 0:02:35]} 18. e5 {[%emt 0:01:47]} Nc6 {[%emt 0:08:06]} 19. Nf2 {[%emt 0:01:07]} f6 {[%emt 0:01:22]} 20. exf6 {[%emt 0:00:22]} Bxf6 {[%emt 0:01:21]} 21. Bg5 {[%emt 0:03:03]} Bxg5 {[%emt 0:01:17]} 22. fxg5 {[%emt 0:00:10]} e5 {[%emt 0:00:35]} 23. c4 {[%emt 0:01:45]} Nb4 {[%emt 0:06:02]} 24. cxd5 {[%emt 0:00:53]} Nxd5 {[%emt 0:02:16]} 25. Bxd5+ {[%emt 0:00:22]} Qxd5 {[%emt 0:00:18]} 26. Ne4 {[%emt 0:00:08]} Kg7 {[%emt 0:02:57]} 27. Nf6 {[%emt 0:01:01]} Qe6 {[%emt 0:00:21]} 28. Nxe8+ {[%emt 0:00:26]} Qxe8 {[%emt 0:00:12]} 29. Qe3 {[%emt 0:01:44]} Qe6 {[%emt 0:00:53]} 30. g4 {[%emt 0:00:15]} Re7 {[%emt 0:03:25]} 31. Rf6 {[%emt 0:02:22]} Qb3 {[%emt 0:00:23]} 32. Qe2 {[%emt 0:02:14]} Bb7 {[%emt 0:00:21]} 33. Raf1 {[%emt 0:00:32]} Qd5 {[%emt 0:03:13]} 34. Qf2 {[%emt 0:01:56]} e4 {[%emt 0:01:04]} 35. Rxg6+ {[%emt 0:00:57]} hxg6 {[%emt 0:02:51]} 36. Qf8+ {[%emt 0:00:11]} 1-0

[Event "SVK Amateur-ch 2020"]
[Site "Topolcany"]
[Date "2020.07.11"]
[Round "3.9"]
[White "Zetocha, Adrian"]
[Black "Varga, Milan"]
[Result "1-0"]
[ECO "E61"]
[WhiteElo "2073"]
[BlackElo "1839"]
[Annotator "ChessBase"]
[PlyCount "45"]
[EventDate "2020.07.10"]
[EventType "swiss"]
[EventCountry "SVK"]
[SourceTitle "playchess.com"]
[Source "ChessBase"]
[SourceQuality "1"]
[TimeControl "3600+30"]

1. d4 {[%emt 0:00:14]} Nf6 {[%emt 0:01:22]} 2. c4 {[%emt 0:00:12]} g6 {[%emt 0:01:17]} 3. Nc3 {[%emt 0:00:15]} Bg7 {[%emt 0:03:40]} 4. Nf3 {[%emt 0:00:12]} O-O {[%emt 0:01:19]} 5. Bg5 {[%emt 0:00:55]} Ne8 {[%emt 0:01:26]} 6. e4 {[%emt 0:01:35]} f6 {[%emt 0:01:37]} 7. Be3 {[%emt 0:02:08]} d6 {[%emt 0:02:04]} 8. Be2 {[%emt 0:01:37]} Bg4 {[%emt 0:05:16]} 9. Qb3 {[%emt 0:08:26]} Qc8 {[%emt 0:05:01]} 10. O-O-O {[%emt 0:02:04]} Be6 {[%emt 0:02:45]} 11. h4 {[%emt 0:00:57]} Bg4 {[%emt 0:07:09]} 12. h5 {[%emt 0:06:29]} Bxh5 {[%emt 0:06:15]} 13. c5+ {[%emt 0:00:42]} Kh8 {[%emt 0:06:06]} 14. Nh4 {[%emt 0:00:10]} g5 {[%emt 0:08:57]} 15. Bxh5 {[%emt 0:01:03]} gxh4 {[%emt 0:00:48]} 16. Rxh4 {[%emt 0:00:08]} e6 {[%emt 0:04:42]} 17. Bg6 {[%emt 0:00:55]} f5 {[%emt 0:01:27]} 18. exf5 {[%emt 0:00:41]} d5 {[%emt 0:02:23]} 19. Rxh7+ {[%emt 0:00:38]} Kg8 {[%emt 0:00:16]} 20. Nxd5 {[%emt 0:00:10]} Nc6 {[%emt 0:02:30]} 21. fxe6 {[%emt 0:01:12]} Qd8 {[%emt 0:02:32]} 22. e7 {[%emt 0:00:36]} Na5 {[%emt 0:00:57]} 23. Nf6# {[%emt 0:00:12]} 1-0